[Event "Titled Tuesday Blitz January 31 Late 2023"]
[White "Yoo, Christopher Woojin"]
[Black "Travadon, Loic"]
[WhiteFideId "30909694"]
[BlackFideId "26092131"]
[WhiteElo "2607"]
[BlackElo "2461"]
[Result "1-0"]
[Round "01"]
[TimeControl "180+2"]
[Date "2023.01.31"]
[WhiteClock "0:00:03"]
[BlackClock "0:00:06"]

1. d4 {[%clk 0:03:00]}  Nf6 {[%clk 0:02:58]} 2. Nf3 {[%clk 0:03:00]}  d5 {[%clk 0:02:58]} 3. Bf4 {[%clk 0:02:59]}  e6 {[%clk 0:02:58]} 4. e3 {[%clk 0:02:56]}  Bd6 {[%clk 0:02:58]} 5. Ne5 {[%clk 0:02:55]}  O-O {[%clk 0:02:56]} 6. Bd3 {[%clk 0:02:54]}  c5 {[%clk 0:02:56]} 7. c3 {[%clk 0:02:51]}  Nc6 {[%clk 0:02:56]} 8. Nd2 {[%clk 0:02:49]}  Qc7 {[%clk 0:02:51]} 9. Ndf3 {[%clk 0:02:49]}  Ne7 {[%clk 0:02:43]} 10. O-O {[%clk 0:02:35]}  Ng6 {[%clk 0:02:42]} 11. Bg3 {[%clk 0:02:28]}  b6 {[%clk 0:02:39]} 12. Qe2 {[%clk 0:01:59]}  Bb7 {[%clk 0:02:37]} 13. Rfd1 {[%clk 0:01:56]}  Rad8 {[%clk 0:02:28]} 14. Nxg6 {[%clk 0:01:32]}  hxg6 {[%clk 0:02:27]} 15. Bxd6 {[%clk 0:01:28]}  Rxd6 {[%clk 0:02:28]} 16. Ne5 {[%clk 0:01:27]}  Ne4 {[%clk 0:02:15]} 17. f3 {[%clk 0:01:21]}  Nf6 {[%clk 0:02:15]} 18. Qf2 {[%clk 0:01:15]}  Qe7 {[%clk 0:02:12]} 19. h4 {[%clk 0:01:06]}  Nd7 {[%clk 0:02:09]} 20. f4 {[%clk 0:00:59]}  Rc8 {[%clk 0:01:55]} 21. Qg3 {[%clk 0:00:51]}  cxd4 {[%clk 0:01:44]} 22. exd4 {[%clk 0:00:52]}  b5 {[%clk 0:01:40]} 23. Qh3 {[%clk 0:00:39]}  Nf6 {[%clk 0:01:30]} 24. a4 {[%clk 0:00:31]}  b4 {[%clk 0:01:03]} 25. cxb4 {[%clk 0:00:27]}  Rb6 {[%clk 0:01:03]} 26. b5 {[%clk 0:00:28]}  Qb4 {[%clk 0:01:01]} 27. Qe3 {[%clk 0:00:25]}  a5 {[%clk 0:00:53]} 28. Rdc1 {[%clk 0:00:20]}  Qxb2 {[%clk 0:00:46]} 29. Rxc8+ {[%clk 0:00:20]}  Bxc8 {[%clk 0:00:45]} 30. Rc1 {[%clk 0:00:21]}  Bd7 {[%clk 0:00:43]} 31. Rc7 {[%clk 0:00:13]}  Rd6 {[%clk 0:00:41]} 32. Kh2 {[%clk 0:00:06]}  Qb4 {[%clk 0:00:39]} 33. Qc1 {[%clk 0:00:04]}  Qxa4 {[%clk 0:00:26]} 34. Rc8+ {[%clk 0:00:03]}  Kh7 {[%clk 0:00:23]} 35. Qc7 {[%clk 0:00:03]}  Qxd4 {[%clk 0:00:16]} 36. Qxd6 {[%clk 0:00:02]}  Bxc8 {[%clk 0:00:17]} 37. Be2 {[%clk 0:00:02]}  Qxf4+ {[%clk 0:00:17]} 38. Kg1 {[%clk 0:00:03]}  Ng4 {[%clk 0:00:15]} 39. Bxg4 {[%clk 0:00:02]}  Qc1+ {[%clk 0:00:14]} 40. Kh2 {[%clk 0:00:02]}  Qf4+ {[%clk 0:00:14]} 41. Kh3 {[%clk 0:00:03]}  f6 {[%clk 0:00:11]} 42. Nf7 {[%clk 0:00:03]}  Qe3+ {[%clk 0:00:09]} 43. Kh2 {[%clk 0:00:03]}  e5 {[%clk 0:00:08]} 44. Bxc8 {[%clk 0:00:03]}  Qf4+ {[%clk 0:00:08]} 45. Kh3 {[%clk 0:00:02]}  Qe3+ {[%clk 0:00:09]} 46. g3 {[%clk 0:00:02]}  Qf3 {[%clk 0:00:07]} 47. Ng5+ {[%clk 0:00:01]}  fxg5 {[%clk 0:00:07]} 48. Qxe5 {[%clk 0:00:01]}  Qf1+ {[%clk 0:00:06]} 49. Kg4 {[%clk 0:00:02]}  Qd1+ {[%clk 0:00:06]} 50. Kxg5 {[%clk 0:00:02]}  Qh5+ {[%clk 0:00:06]} 51. Kf4 {[%clk 0:00:03]} 1-0


[Site "https://www.chess.com"]

[Event "Titled Tuesday Blitz January 31 Late 2023"]
[White "Tari, Aryan"]
[Black "Matko, Ognjen"]
[WhiteFideId "1510045"]
[BlackFideId "14509717"]
[WhiteElo "2642"]
[BlackElo "2295"]
[Result "1-0"]
[Round "01"]
[TimeControl "180+2"]
[Date "2023.01.31"]
[WhiteClock "0:01:27"]
[BlackClock "0:00:12"]

1. c3 {[%clk 0:02:51]}  d5 {[%clk 0:02:58]} 2. d4 {[%clk 0:02:50]}  Nf6 {[%clk 0:02:55]} 3. Nf3 {[%clk 0:02:50]}  c6 {[%clk 0:02:52]} 4. Bf4 {[%clk 0:02:50]}  Bf5 {[%clk 0:02:51]} 5. e3 {[%clk 0:02:49]}  Qb6 {[%clk 0:02:48]} 6. Qb3 {[%clk 0:02:38]}  e6 {[%clk 0:02:44]} 7. h3 {[%clk 0:02:38]}  h6 {[%clk 0:02:43]} 8. Be2 {[%clk 0:02:19]}  Nbd7 {[%clk 0:02:42]} 9. O-O {[%clk 0:02:18]}  Be7 {[%clk 0:02:41]} 10. c4 {[%clk 0:02:17]}  Qxb3 {[%clk 0:02:27]} 11. axb3 {[%clk 0:02:18]}  O-O {[%clk 0:02:25]} 12. c5 {[%clk 0:02:17]}  a6 {[%clk 0:02:24]} 13. b4 {[%clk 0:02:17]}  Ne4 {[%clk 0:02:20]} 14. Nc3 {[%clk 0:02:16]}  Rac8 {[%clk 0:02:10]} 15. Nxe4 {[%clk 0:02:16]}  Bxe4 {[%clk 0:02:09]} 16. Nd2 {[%clk 0:02:16]}  Bh7 {[%clk 0:02:08]} 17. Nb3 {[%clk 0:02:15]}  Rfe8 {[%clk 0:02:05]} 18. Na5 {[%clk 0:02:15]}  e5 {[%clk 0:01:56]} 19. dxe5 {[%clk 0:02:12]}  Bf8 {[%clk 0:01:44]} 20. Nxb7 {[%clk 0:02:11]}  Nxe5 {[%clk 0:01:44]} 21. Bxa6 {[%clk 0:02:06]}  Bd3 {[%clk 0:01:33]} 22. Rfd1 {[%clk 0:02:00]}  Bxa6 {[%clk 0:01:25]} 23. Rxa6 {[%clk 0:02:01]}  g5 {[%clk 0:01:08]} 24. Bg3 {[%clk 0:01:52]}  h5 {[%clk 0:01:01]} 25. Na5 {[%clk 0:01:52]}  Nc4 {[%clk 0:00:52]} 26. Nxc6 {[%clk 0:01:45]}  Nxb2 {[%clk 0:00:49]} 27. Rxd5 {[%clk 0:01:45]}  f6 {[%clk 0:00:45]} 28. Bd6 {[%clk 0:01:36]}  Ra8 {[%clk 0:00:35]} 29. b5 {[%clk 0:01:34]}  Nc4 {[%clk 0:00:31]} 30. Bxf8 {[%clk 0:01:34]}  Kxf8 {[%clk 0:00:31]} 31. Rxa8 {[%clk 0:01:33]}  Rxa8 {[%clk 0:00:28]} 32. b6 {[%clk 0:01:32]}  Ra1+ {[%clk 0:00:24]} 33. Kh2 {[%clk 0:01:32]}  Rb1 {[%clk 0:00:25]} 34. Rd4 {[%clk 0:01:30]}  Ne5 {[%clk 0:00:16]} 35. Nxe5 {[%clk 0:01:27]}  fxe5 {[%clk 0:00:17]} 36. Rd5 {[%clk 0:01:28]}  Rb2 {[%clk 0:00:12]} 37. Rxe5 {[%clk 0:01:27]} 1-0


[Site "https://www.chess.com"]

[Event "Titled Tuesday Blitz January 31 Late 2023"]
[White "Oparin, Grigoriy"]
[Black "Gasparyan, David"]
[WhiteFideId "24125890"]
[BlackFideId "13311980"]
[WhiteElo "2667"]
[BlackElo "2142"]
[Result "1-0"]
[Round "01"]
[TimeControl "180+2"]
[Date "2023.01.31"]
[WhiteClock "0:01:33"]
[BlackClock "0:01:03"]

1. e4 {[%clk 0:03:00]}  c5 {[%clk 0:02:58]} 2. Nf3 {[%clk 0:03:00]}  Nc6 {[%clk 0:02:57]} 3. Bb5 {[%clk 0:03:01]}  Qb6 {[%clk 0:02:55]} 4. Nc3 {[%clk 0:02:58]}  e6 {[%clk 0:02:54]} 5. O-O {[%clk 0:02:58]}  Nge7 {[%clk 0:02:52]} 6. Re1 {[%clk 0:02:54]}  a6 {[%clk 0:02:48]} 7. Bf1 {[%clk 0:02:53]}  Qc7 {[%clk 0:02:47]} 8. b3 {[%clk 0:02:50]}  Ng6 {[%clk 0:02:47]} 9. Bb2 {[%clk 0:02:51]}  Bd6 {[%clk 0:02:47]} 10. Ne2 {[%clk 0:02:44]}  Nce5 {[%clk 0:02:43]} 11. Nxe5 {[%clk 0:02:40]}  Bxe5 {[%clk 0:02:44]} 12. Bxe5 {[%clk 0:02:40]}  Nxe5 {[%clk 0:02:44]} 13. d4 {[%clk 0:02:36]}  cxd4 {[%clk 0:02:44]} 14. Qxd4 {[%clk 0:02:37]}  O-O {[%clk 0:02:42]} 15. c4 {[%clk 0:02:33]}  b6 {[%clk 0:02:29]} 16. Rad1 {[%clk 0:02:27]}  Ng4 {[%clk 0:02:03]} 17. Qd6 {[%clk 0:02:24]}  Qc5 {[%clk 0:01:51]} 18. Qxc5 {[%clk 0:02:21]}  bxc5 {[%clk 0:01:52]} 19. Nc3 {[%clk 0:02:18]}  f5 {[%clk 0:01:34]} 20. f3 {[%clk 0:02:09]}  Ne5 {[%clk 0:01:31]} 21. Na4 {[%clk 0:02:09]}  fxe4 {[%clk 0:01:27]} 22. Rxe4 {[%clk 0:02:10]}  Rf5 {[%clk 0:01:23]} 23. Re3 {[%clk 0:01:36]}  d5 {[%clk 0:01:03]} 24. cxd5 {[%clk 0:01:34]}  exd5 {[%clk 0:01:03]} 25. Nxc5 {[%clk 0:01:33]}  d4 {[%clk 0:01:04]} 26. Rxd4 {[%clk 0:01:32]}  Nxf3+ {[%clk 0:01:03]} 27. Rxf3 {[%clk 0:01:32]}  Rxc5 {[%clk 0:01:03]} 28. Rd8# {[%clk 0:01:33]} 1-0


[Site "https://www.chess.com"]

[Event "Titled Tuesday Blitz January 31 Late 2023"]
[White "Zhigalko, Sergei"]
[Black "Arencibia Monduy, Antonio"]
[WhiteFideId "13502956"]
[BlackFideId "3507939"]
[WhiteElo "2572"]
[BlackElo "2122"]
[Result "1-0"]
[Round "01"]
[TimeControl "180+2"]
[Date "2023.01.31"]
[WhiteClock "0:01:20"]
[BlackClock "0:01:32"]

1. e4 {[%clk 0:03:00]}  e6 {[%clk 0:02:59]} 2. d4 {[%clk 0:03:00]}  d5 {[%clk 0:03:00]} 3. e5 {[%clk 0:03:01]}  c5 {[%clk 0:03:00]} 4. c3 {[%clk 0:03:02]}  Nc6 {[%clk 0:03:00]} 5. Nf3 {[%clk 0:03:02]}  cxd4 {[%clk 0:03:00]} 6. cxd4 {[%clk 0:03:02]}  Nge7 {[%clk 0:03:01]} 7. Nc3 {[%clk 0:03:03]}  Nf5 {[%clk 0:03:01]} 8. a3 {[%clk 0:03:03]}  Qb6 {[%clk 0:03:00]} 9. Na4 {[%clk 0:03:03]}  Qd8 {[%clk 0:02:54]} 10. b4 {[%clk 0:03:03]}  a6 {[%clk 0:02:54]} 11. Bb2 {[%clk 0:03:03]}  Be7 {[%clk 0:02:55]} 12. Bd3 {[%clk 0:03:04]}  O-O {[%clk 0:02:55]} 13. O-O {[%clk 0:03:04]}  Bd7 {[%clk 0:02:49]} 14. Nc5 {[%clk 0:03:04]}  Bxc5 {[%clk 0:02:49]} 15. dxc5 {[%clk 0:03:05]}  Nce7 {[%clk 0:02:21]} 16. Re1 {[%clk 0:03:04]}  Bb5 {[%clk 0:02:17]} 17. Bc2 {[%clk 0:03:04]}  a5 {[%clk 0:02:14]} 18. a4 {[%clk 0:03:04]}  Bc4 {[%clk 0:02:14]} 19. b5 {[%clk 0:03:04]}  Rc8 {[%clk 0:02:13]} 20. Ba3 {[%clk 0:02:59]}  Ng6 {[%clk 0:02:13]} 21. Bxf5 {[%clk 0:02:41]}  exf5 {[%clk 0:02:13]} 22. c6 {[%clk 0:02:42]}  Re8 {[%clk 0:02:08]} 23. cxb7 {[%clk 0:02:42]}  Rb8 {[%clk 0:02:09]} 24. Nd4 {[%clk 0:02:23]}  Rxb7 {[%clk 0:02:06]} 25. Nxf5 {[%clk 0:02:23]}  Rxe5 {[%clk 0:01:58]} 26. Nd6 {[%clk 0:02:09]}  Rxe1+ {[%clk 0:01:44]} 27. Qxe1 {[%clk 0:02:09]}  Rd7 {[%clk 0:01:44]} 28. Nf5 {[%clk 0:01:40]}  d4 {[%clk 0:01:37]} 29. Rd1 {[%clk 0:01:21]}  d3 {[%clk 0:01:33]} 30. Qc3 {[%clk 0:01:20]}  Be6 {[%clk 0:01:32]} 31. Qxg7# {[%clk 0:01:20]} 1-0


[Site "https://www.chess.com"]

[Event "Titled Tuesday Blitz January 31 Late 2023"]
[White "Hajiyev, Kanan"]
[Black "Jones, Gawain C B"]
[WhiteFideId "13404148"]
[BlackFideId "409561"]
[WhiteElo "2197"]
[BlackElo "2618"]
[Result "0-1"]
[Round "01"]
[TimeControl "180+2"]
[Date "2023.01.31"]
[WhiteClock "0:00:04"]
[BlackClock "0:00:09"]

1. d4 {[%clk 0:03:00]}  Nf6 {[%clk 0:02:56]} 2. Nf3 {[%clk 0:03:01]}  g6 {[%clk 0:02:57]} 3. g3 {[%clk 0:03:01]}  c5 {[%clk 0:02:56]} 4. c3 {[%clk 0:02:59]}  b6 {[%clk 0:02:55]} 5. Bg2 {[%clk 0:02:59]}  Bb7 {[%clk 0:02:56]} 6. O-O {[%clk 0:03:00]}  Bg7 {[%clk 0:02:56]} 7. Bg5 {[%clk 0:02:54]}  O-O {[%clk 0:02:56]} 8. Nbd2 {[%clk 0:02:53]}  h6 {[%clk 0:02:55]} 9. Bxf6 {[%clk 0:02:53]}  Bxf6 {[%clk 0:02:56]} 10. e4 {[%clk 0:02:52]}  d6 {[%clk 0:02:56]} 11. Qe2 {[%clk 0:02:52]}  cxd4 {[%clk 0:02:56]} 12. Nxd4 {[%clk 0:02:51]}  Nc6 {[%clk 0:02:51]} 13. Nxc6 {[%clk 0:02:46]}  Bxc6 {[%clk 0:02:51]} 14. Rfe1 {[%clk 0:02:42]}  Rc8 {[%clk 0:02:50]} 15. Nf3 {[%clk 0:02:35]}  Qc7 {[%clk 0:02:42]} 16. Nd4 {[%clk 0:02:24]}  Bb7 {[%clk 0:02:38]} 17. Nb5 {[%clk 0:02:13]}  Qb8 {[%clk 0:02:32]} 18. Rad1 {[%clk 0:02:09]}  Rc5 {[%clk 0:02:28]} 19. Nd4 {[%clk 0:02:05]}  Rfc8 {[%clk 0:02:27]} 20. Nc2 {[%clk 0:01:59]}  b5 {[%clk 0:02:23]} 21. Ne3 {[%clk 0:01:50]}  e6 {[%clk 0:02:22]} 22. Qd2 {[%clk 0:01:45]}  Be7 {[%clk 0:02:18]} 23. h4 {[%clk 0:01:31]}  h5 {[%clk 0:02:18]} 24. a3 {[%clk 0:01:23]}  Qa8 {[%clk 0:02:18]} 25. Nc2 {[%clk 0:01:21]}  a5 {[%clk 0:02:15]} 26. Kh2 {[%clk 0:01:13]}  Rc4 {[%clk 0:02:11]} 27. f3 {[%clk 0:01:03]}  Qa6 {[%clk 0:02:06]} 28. Bf1 {[%clk 0:00:59]}  R4c5 {[%clk 0:02:02]} 29. a4 {[%clk 0:00:53]}  d5 {[%clk 0:02:01]} 30. axb5 {[%clk 0:00:45]}  Qb6 {[%clk 0:01:56]} 31. e5 {[%clk 0:00:41]}  d4 {[%clk 0:01:53]} 32. Nxd4 {[%clk 0:00:39]}  Rd8 {[%clk 0:01:43]} 33. Qe3 {[%clk 0:00:34]}  Rcd5 {[%clk 0:01:35]} 34. Rd2 {[%clk 0:00:29]}  Bc5 {[%clk 0:01:32]} 35. Red1 {[%clk 0:00:29]}  Qc7 {[%clk 0:01:32]} 36. f4 {[%clk 0:00:29]}  R5d7 {[%clk 0:01:30]} 37. Bg2 {[%clk 0:00:27]}  Bxg2 {[%clk 0:01:29]} 38. Kxg2 {[%clk 0:00:27]}  Bxd4 {[%clk 0:01:22]} 39. Rxd4 {[%clk 0:00:27]}  Qb7+ {[%clk 0:01:22]} 40. Qf3 {[%clk 0:00:24]}  Qxb5 {[%clk 0:01:20]} 41. Rxd7 {[%clk 0:00:17]}  Rxd7 {[%clk 0:01:21]} 42. Rxd7 {[%clk 0:00:17]}  Qxd7 {[%clk 0:01:22]} 43. Qe2 {[%clk 0:00:13]}  Qb7+ {[%clk 0:01:18]} 44. Kh2 {[%clk 0:00:13]}  Qb3 {[%clk 0:01:18]} 45. Qd2 {[%clk 0:00:13]}  Kg7 {[%clk 0:01:17]} 46. Kg2 {[%clk 0:00:13]}  a4 {[%clk 0:01:15]} 47. Kf2 {[%clk 0:00:14]}  Qb6+ {[%clk 0:01:14]} 48. Kg2 {[%clk 0:00:14]}  Kg8 {[%clk 0:01:11]} 49. Kh2 {[%clk 0:00:14]}  Qb7 {[%clk 0:01:08]} 50. Qc2 {[%clk 0:00:14]}  Qb5 {[%clk 0:01:03]} 51. c4 {[%clk 0:00:15]}  Qc6 {[%clk 0:00:57]} 52. c5 {[%clk 0:00:14]}  Kf8 {[%clk 0:00:56]} 53. Qc4 {[%clk 0:00:14]}  Qf3 {[%clk 0:00:50]} 54. Qd4 {[%clk 0:00:14]}  Ke7 {[%clk 0:00:45]} 55. Qd6+ {[%clk 0:00:13]}  Ke8 {[%clk 0:00:46]} 56. Qb8+ {[%clk 0:00:10]}  Ke7 {[%clk 0:00:46]} 57. Qd6+ {[%clk 0:00:10]}  Ke8 {[%clk 0:00:46]} 58. c6 {[%clk 0:00:10]}  Qf2+ {[%clk 0:00:46]} 59. Kh3 {[%clk 0:00:10]}  Qg1 {[%clk 0:00:41]} 60. Qd7+ {[%clk 0:00:07]}  Kf8 {[%clk 0:00:41]} 61. Qd8+ {[%clk 0:00:07]}  Kg7 {[%clk 0:00:41]} 62. Qf6+ {[%clk 0:00:06]}  Kg8 {[%clk 0:00:41]} 63. Qd8+ {[%clk 0:00:03]}  Kh7 {[%clk 0:00:42]} 64. Qd2 {[%clk 0:00:04]}  Qh1+ {[%clk 0:00:41]} 65. Qh2 {[%clk 0:00:05]}  Qxc6 {[%clk 0:00:42]} 66. Qg2 {[%clk 0:00:05]}  Qc1 {[%clk 0:00:40]} 67. Kh2 {[%clk 0:00:06]}  Kg7 {[%clk 0:00:39]} 68. Qe2 {[%clk 0:00:06]}  Qc6 {[%clk 0:00:29]} 69. Kh3 {[%clk 0:00:06]}  Qh1+ {[%clk 0:00:26]} 70. Qh2 {[%clk 0:00:06]}  Qb1 {[%clk 0:00:19]} 71. Qg2 {[%clk 0:00:06]}  Qa2 {[%clk 0:00:10]} 72. Qb7 {[%clk 0:00:03]}  Qc4 {[%clk 0:00:06]} 73. Kh2 {[%clk 0:00:03]}  Qe2+ {[%clk 0:00:05]} 74. Qg2 {[%clk 0:00:02]}  Qd1 {[%clk 0:00:05]} 75. Qf2 {[%clk 0:00:02]}  Kg8 {[%clk 0:00:04]} 76. Kg2 {[%clk 0:00:02]}  Qd5+ {[%clk 0:00:03]} 77. Kh2 {[%clk 0:00:03]}  Qb5 {[%clk 0:00:04]} 78. Qg2 {[%clk 0:00:03]}  Kf8 {[%clk 0:00:04]} 79. Qd2 {[%clk 0:00:03]}  Ke8 {[%clk 0:00:04]} 80. Kg2 {[%clk 0:00:03]}  Qd7 {[%clk 0:00:02]} 81. Qxd7+ {[%clk 0:00:01]}  Kxd7 {[%clk 0:00:03]} 82. Kf3 {[%clk 0:00:01]}  Kc6 {[%clk 0:00:04]} 83. Ke4 {[%clk 0:00:02]}  Kc5 {[%clk 0:00:04]} 84. Kd3 {[%clk 0:00:01]}  Kb4 {[%clk 0:00:05]} 85. Kc2 {[%clk 0:00:01]}  Kc4 {[%clk 0:00:05]} 86. Kd2 {[%clk 0:00:01]}  Kd4 {[%clk 0:00:05]} 87. Kc2 {[%clk 0:00:01]}  Ke3 {[%clk 0:00:04]} 88. Kc3 {[%clk 0:00:02]}  Kf3 {[%clk 0:00:05]} 89. Kb4 {[%clk 0:00:03]}  Kxg3 {[%clk 0:00:06]} 90. Kxa4 {[%clk 0:00:04]}  Kxh4 {[%clk 0:00:06]} 91. b4 {[%clk 0:00:05]}  Kg3 {[%clk 0:00:06]} 92. b5 {[%clk 0:00:06]}  h4 {[%clk 0:00:07]} 93. b6 {[%clk 0:00:06]}  h3 {[%clk 0:00:07]} 94. b7 {[%clk 0:00:07]}  h2 {[%clk 0:00:08]} 95. b8=Q {[%clk 0:00:08]}  h1=Q {[%clk 0:00:09]} 96. Qf8 {[%clk 0:00:06]}  Qe4+ {[%clk 0:00:09]} 97. Kb5 {[%clk 0:00:06]}  Qf5 {[%clk 0:00:09]} 98. Kc6 {[%clk 0:00:02]}  Kxf4 {[%clk 0:00:09]} 99. Kd6 {[%clk 0:00:03]}  Qxe5+ {[%clk 0:00:08]} 100. Kd7 {[%clk 0:00:04]}  Qd5+ {[%clk 0:00:08]} 101. Ke8 {[%clk 0:00:04]}  Qa8+ {[%clk 0:00:08]} 102. Kxf7 {[%clk 0:00:04]}  Qxf8+ {[%clk 0:00:09]} 0-1


[Site "https://www.chess.com"]

[Event "Titled Tuesday Blitz January 31 Late 2023"]
[White "Golubev, Mikhail"]
[Black "Moroni, Luca Jr"]
[WhiteFideId "14100983"]
[BlackFideId "865834"]
[WhiteElo "2461"]
[BlackElo "2535"]
[Result "0-1"]
[Round "01"]
[TimeControl "180+2"]
[Date "2023.01.31"]
[WhiteClock "0:00:06"]
[BlackClock "0:00:27"]

1. e4 {[%clk 0:02:59]}  d6 {[%clk 0:03:00]} 2. d4 {[%clk 0:02:58]}  e5 {[%clk 0:03:01]} 3. dxe5 {[%clk 0:02:57]}  dxe5 {[%clk 0:03:02]} 4. Qxd8+ {[%clk 0:02:56]}  Kxd8 {[%clk 0:03:02]} 5. Bc4 {[%clk 0:02:56]}  f6 {[%clk 0:03:02]} 6. Ne2 {[%clk 0:02:52]}  c6 {[%clk 0:03:02]} 7. O-O {[%clk 0:02:50]}  Bc5 {[%clk 0:03:01]} 8. Nd2 {[%clk 0:02:49]}  Kc7 {[%clk 0:02:59]} 9. Nb3 {[%clk 0:02:48]}  Bb6 {[%clk 0:02:59]} 10. a4 {[%clk 0:02:47]}  a5 {[%clk 0:02:59]} 11. Kh1 {[%clk 0:02:42]}  Ne7 {[%clk 0:02:57]} 12. f4 {[%clk 0:02:42]}  Nd7 {[%clk 0:02:53]} 13. f5 {[%clk 0:02:38]}  Nc5 {[%clk 0:02:52]} 14. Nxc5 {[%clk 0:02:31]}  Bxc5 {[%clk 0:02:53]} 15. Bd2 {[%clk 0:02:26]}  Bd7 {[%clk 0:02:52]} 16. Nc1 {[%clk 0:02:21]}  Rhd8 {[%clk 0:02:32]} 17. Nd3 {[%clk 0:02:21]}  Bb6 {[%clk 0:02:28]} 18. Bc3 {[%clk 0:02:21]}  Bd4 {[%clk 0:02:12]} 19. Bxd4 {[%clk 0:02:14]}  exd4 {[%clk 0:02:12]} 20. Nf4 {[%clk 0:02:13]}  b5 {[%clk 0:01:56]} 21. Be6 {[%clk 0:02:10]}  Be8 {[%clk 0:01:54]} 22. axb5 {[%clk 0:02:04]}  cxb5 {[%clk 0:01:54]} 23. c3 {[%clk 0:02:04]}  dxc3 {[%clk 0:01:51]} 24. Rfc1 {[%clk 0:01:53]}  Kb6 {[%clk 0:01:48]} 25. Rxc3 {[%clk 0:01:51]}  Rd2 {[%clk 0:01:45]} 26. Nd5+ {[%clk 0:01:28]}  Nxd5 {[%clk 0:01:43]} 27. Bxd5 {[%clk 0:01:29]}  Rd8 {[%clk 0:01:31]} 28. b3 {[%clk 0:01:20]}  b4 {[%clk 0:01:30]} 29. Rh3 {[%clk 0:01:13]}  h6 {[%clk 0:01:21]} 30. Rg3 {[%clk 0:01:13]}  Rd7 {[%clk 0:01:18]} 31. h3 {[%clk 0:01:09]}  Rc7 {[%clk 0:01:17]} 32. Kh2 {[%clk 0:01:04]}  Bb5 {[%clk 0:01:15]} 33. Rg6 {[%clk 0:00:54]}  Rd3 {[%clk 0:01:00]} 34. Ra2 {[%clk 0:00:35]}  Bc6 {[%clk 0:00:48]} 35. Bxc6 {[%clk 0:00:32]}  Rxc6 {[%clk 0:00:48]} 36. Rxg7 {[%clk 0:00:29]}  Rxb3 {[%clk 0:00:48]} 37. Rh7 {[%clk 0:00:24]}  Kb5 {[%clk 0:00:43]} 38. Rxh6 {[%clk 0:00:22]}  Re3 {[%clk 0:00:37]} 39. Rh8 {[%clk 0:00:15]}  b3 {[%clk 0:00:35]} 40. Rb8+ {[%clk 0:00:08]}  Rb6 {[%clk 0:00:34]} 41. Rxb6+ {[%clk 0:00:07]}  Kxb6 {[%clk 0:00:35]} 42. Ra3 {[%clk 0:00:07]}  Kb5 {[%clk 0:00:34]} 43. e5 {[%clk 0:00:07]}  a4 {[%clk 0:00:27]} 44. exf6 {[%clk 0:00:07]}  Re8 {[%clk 0:00:27]} 45. g4 {[%clk 0:00:06]}  b2 {[%clk 0:00:27]} 0-1


[Site "https://www.chess.com"]

[Event "Titled Tuesday Blitz January 31 Late 2023"]
[White "Kazakouski, Valery"]
[Black "Bambino Filho, Antonio Carlos"]
[WhiteFideId "13507443"]
[BlackFideId "2113163"]
[WhiteElo "2539"]
[BlackElo "2144"]
[Result "1/2-1/2"]
[Round "01"]
[TimeControl "180+2"]
[Date "2023.01.31"]
[WhiteClock "0:00:05"]
[BlackClock "0:00:15"]

1. Nf3 {[%clk 0:03:00]}  c5 {[%clk 0:02:57]} 2. c4 {[%clk 0:03:00]}  Nc6 {[%clk 0:02:55]} 3. g3 {[%clk 0:03:00]}  g6 {[%clk 0:02:54]} 4. Bg2 {[%clk 0:02:55]}  Bg7 {[%clk 0:02:50]} 5. d3 {[%clk 0:02:55]}  e5 {[%clk 0:02:50]} 6. Nc3 {[%clk 0:02:53]}  Nge7 {[%clk 0:02:51]} 7. O-O {[%clk 0:02:53]}  O-O {[%clk 0:02:52]} 8. Ne1 {[%clk 0:02:53]}  f5 {[%clk 0:02:52]} 9. Nc2 {[%clk 0:02:53]}  f4 {[%clk 0:02:52]} 10. Rb1 {[%clk 0:02:48]}  d6 {[%clk 0:02:52]} 11. b4 {[%clk 0:02:48]}  Rb8 {[%clk 0:02:45]} 12. bxc5 {[%clk 0:02:48]}  dxc5 {[%clk 0:02:38]} 13. Ne4 {[%clk 0:02:46]}  b6 {[%clk 0:02:35]} 14. e3 {[%clk 0:02:47]}  fxe3 {[%clk 0:02:20]} 15. fxe3 {[%clk 0:02:45]}  Bf5 {[%clk 0:02:12]} 16. Na3 {[%clk 0:02:07]}  Qd7 {[%clk 0:02:06]} 17. Nc2 {[%clk 0:01:45]}  Rbd8 {[%clk 0:02:05]} 18. Rb3 {[%clk 0:01:44]}  h6 {[%clk 0:01:59]} 19. Bd2 {[%clk 0:01:29]}  Bg4 {[%clk 0:01:52]} 20. Qe1 {[%clk 0:01:28]}  g5 {[%clk 0:01:41]} 21. Na3 {[%clk 0:01:17]}  Nc8 {[%clk 0:01:25]} 22. Nb1 {[%clk 0:01:02]}  Rxf1+ {[%clk 0:01:05]} 23. Qxf1 {[%clk 0:01:02]}  Rf8 {[%clk 0:01:06]} 24. Qe1 {[%clk 0:01:02]}  Nd6 {[%clk 0:00:59]} 25. Nxd6 {[%clk 0:00:58]}  Qxd6 {[%clk 0:00:58]} 26. Nc3 {[%clk 0:00:59]}  Na5 {[%clk 0:00:58]} 27. Ne4 {[%clk 0:00:55]}  Qd7 {[%clk 0:00:55]} 28. Bxa5 {[%clk 0:00:55]}  bxa5 {[%clk 0:00:55]} 29. Nxc5 {[%clk 0:00:51]}  Qc7 {[%clk 0:00:48]} 30. Ne4 {[%clk 0:00:43]}  Bf3 {[%clk 0:00:47]} 31. Bxf3 {[%clk 0:00:41]}  Rxf3 {[%clk 0:00:48]} 32. Qe2 {[%clk 0:00:42]}  g4 {[%clk 0:00:48]} 33. Rb1 {[%clk 0:00:39]}  a4 {[%clk 0:00:38]} 34. Rf1 {[%clk 0:00:39]}  Rxf1+ {[%clk 0:00:38]} 35. Qxf1 {[%clk 0:00:40]}  Qb6 {[%clk 0:00:36]} 36. Qe2 {[%clk 0:00:38]}  a3 {[%clk 0:00:36]} 37. Kf2 {[%clk 0:00:26]}  Qb2 {[%clk 0:00:33]} 38. Qxb2 {[%clk 0:00:24]}  axb2 {[%clk 0:00:34]} 39. Nc3 {[%clk 0:00:21]}  e4 {[%clk 0:00:34]} 40. d4 {[%clk 0:00:21]}  Bf8 {[%clk 0:00:34]} 41. Ke2 {[%clk 0:00:19]}  Bb4 {[%clk 0:00:33]} 42. Nb1 {[%clk 0:00:19]}  a5 {[%clk 0:00:33]} 43. a3 {[%clk 0:00:19]}  Bd6 {[%clk 0:00:31]} 44. c5 {[%clk 0:00:14]}  Bc7 {[%clk 0:00:29]} 45. d5 {[%clk 0:00:14]}  Be5 {[%clk 0:00:30]} 46. Kd2 {[%clk 0:00:10]}  h5 {[%clk 0:00:29]} 47. Kc2 {[%clk 0:00:11]}  h4 {[%clk 0:00:29]} 48. Nd2 {[%clk 0:00:08]}  hxg3 {[%clk 0:00:20]} 49. hxg3 {[%clk 0:00:09]}  Bxg3 {[%clk 0:00:21]} 50. Nxe4 {[%clk 0:00:10]}  Be5 {[%clk 0:00:21]} 51. d6 {[%clk 0:00:09]}  Kf7 {[%clk 0:00:21]} 52. c6 {[%clk 0:00:08]}  Ke6 {[%clk 0:00:18]} 53. d7 {[%clk 0:00:07]}  Ke7 {[%clk 0:00:17]} 54. Nd2 {[%clk 0:00:03]}  g3 {[%clk 0:00:17]} 55. Nf3 {[%clk 0:00:04]}  Bc7 {[%clk 0:00:16]} 56. Kxb2 {[%clk 0:00:03]}  Kd6 {[%clk 0:00:17]} 57. Kc3 {[%clk 0:00:03]}  Kxc6 {[%clk 0:00:17]} 58. Kd3 {[%clk 0:00:04]}  Kxd7 {[%clk 0:00:18]} 59. a4 {[%clk 0:00:04]}  Ke6 {[%clk 0:00:18]} 60. Ke2 {[%clk 0:00:02]}  Kf5 {[%clk 0:00:17]} 61. Nd4+ {[%clk 0:00:02]}  Ke4 {[%clk 0:00:18]} 62. Nb3 {[%clk 0:00:01]}  Bb6 {[%clk 0:00:17]} 63. Kf1 {[%clk 0:00:01]}  Kd3 {[%clk 0:00:17]} 64. Kg2 {[%clk 0:00:01]}  Kxe3 {[%clk 0:00:12]} 65. Nxa5 {[%clk 0:00:02]}  Bxa5 {[%clk 0:00:12]} 66. Kxg3 {[%clk 0:00:03]}  Kd3 {[%clk 0:00:13]} 67. Kg4 {[%clk 0:00:03]}  Kc4 {[%clk 0:00:14]} 68. Kf5 {[%clk 0:00:04]}  Kb4 {[%clk 0:00:14]} 69. Ke4 {[%clk 0:00:05]}  Kxa4 {[%clk 0:00:15]} 1/2-1/2


[Site "https://www.chess.com"]